[Event "Titled Tuesday Blitz December 20 Early 2022"]
[White "Azoulas, Mark"]
[Black "De Firmian, Nick"]
[WhiteFideId "2033208"]
[BlackFideId "2000105"]
[WhiteElo "2326"]
[BlackElo "2460"]
[Result "1/2-1/2"]
[Round "07"]
[TimeControl "180+2"]
[Date "2022.12.20"]
[WhiteClock "0:00:13"]
[BlackClock "0:01:07"]

1. e4 {[%clk 0:03:00]}  e6 {[%clk 0:03:00]} 2. d4 {[%clk 0:02:58]}  d5 {[%clk 0:03:01]} 3. exd5 {[%clk 0:02:59]}  exd5 {[%clk 0:03:02]} 4. Bd3 {[%clk 0:02:59]}  Bd6 {[%clk 0:03:02]} 5. h3 {[%clk 0:02:59]}  Ne7 {[%clk 0:03:02]} 6. Nf3 {[%clk 0:02:59]}  O-O {[%clk 0:03:02]} 7. c3 {[%clk 0:02:59]}  Bf5 {[%clk 0:03:03]} 8. O-O {[%clk 0:02:59]}  Nd7 {[%clk 0:03:03]} 9. Re1 {[%clk 0:02:59]}  Bxd3 {[%clk 0:03:03]} 10. Qxd3 {[%clk 0:02:59]}  Ng6 {[%clk 0:03:03]} 11. Bg5 {[%clk 0:02:58]}  f6 {[%clk 0:03:03]} 12. Be3 {[%clk 0:02:55]}  c6 {[%clk 0:03:03]} 13. Nbd2 {[%clk 0:02:53]}  Qc7 {[%clk 0:03:03]} 14. c4 {[%clk 0:02:53]}  dxc4 {[%clk 0:03:01]} 15. Nxc4 {[%clk 0:02:54]}  Nb6 {[%clk 0:02:58]} 16. Nxd6 {[%clk 0:02:54]}  Qxd6 {[%clk 0:02:59]} 17. Rad1 {[%clk 0:02:53]}  Nd5 {[%clk 0:02:59]} 18. a3 {[%clk 0:02:48]}  Rae8 {[%clk 0:02:58]} 19. b4 {[%clk 0:02:47]}  a6 {[%clk 0:02:56]} 20. Rb1 {[%clk 0:02:46]}  Ngf4 {[%clk 0:02:51]} 21. Bxf4 {[%clk 0:02:45]}  Nxf4 {[%clk 0:02:50]} 22. Qc4+ {[%clk 0:02:44]}  Qd5 {[%clk 0:02:46]} 23. Qxd5+ {[%clk 0:02:44]}  Nxd5 {[%clk 0:02:45]} 24. a4 {[%clk 0:02:44]}  Nc3 {[%clk 0:02:40]} 25. Ra1 {[%clk 0:02:37]}  Rxe1+ {[%clk 0:02:38]} 26. Nxe1 {[%clk 0:02:37]}  Ne2+ {[%clk 0:02:38]} 27. Kh2 {[%clk 0:02:32]}  Nxd4 {[%clk 0:02:39]} 28. Nd3 {[%clk 0:02:32]}  Re8 {[%clk 0:02:35]} 29. Nc5 {[%clk 0:02:31]}  Re7 {[%clk 0:02:33]} 30. Rd1 {[%clk 0:02:31]}  Nc2 {[%clk 0:02:23]} 31. Rb1 {[%clk 0:01:31]}  Kf7 {[%clk 0:02:20]} 32. b5 {[%clk 0:01:30]}  cxb5 {[%clk 0:02:18]} 33. axb5 {[%clk 0:01:31]}  Na3 {[%clk 0:02:11]} 34. bxa6 {[%clk 0:00:52]}  Nxb1 {[%clk 0:02:06]} 35. axb7 {[%clk 0:00:38]}  Re8 {[%clk 0:02:03]} 36. Na6 {[%clk 0:00:33]}  Nd2 {[%clk 0:01:54]} 37. b8=Q {[%clk 0:00:28]}  Rxb8 {[%clk 0:01:54]} 38. Nxb8 {[%clk 0:00:29]}  Ne4 {[%clk 0:01:55]} 39. f3 {[%clk 0:00:29]}  Nc5 {[%clk 0:01:53]} 40. Nc6 {[%clk 0:00:28]}  g5 {[%clk 0:01:49]} 41. h4 {[%clk 0:00:25]}  Ne6 {[%clk 0:01:44]} 42. hxg5 {[%clk 0:00:24]}  fxg5 {[%clk 0:01:44]} 43. Kg3 {[%clk 0:00:24]}  h5 {[%clk 0:01:40]} 44. Ne5+ {[%clk 0:00:22]}  Kf6 {[%clk 0:01:39]} 45. Nd7+ {[%clk 0:00:22]}  Kf5 {[%clk 0:01:35]} 46. Kf2 {[%clk 0:00:21]}  h4 {[%clk 0:01:33]} 47. Nb6 {[%clk 0:00:21]}  Nf4 {[%clk 0:01:33]} 48. Nc4 {[%clk 0:00:19]}  Ke6 {[%clk 0:01:25]} 49. g3 {[%clk 0:00:12]}  Ng6 {[%clk 0:01:17]} 50. gxh4 {[%clk 0:00:12]}  gxh4 {[%clk 0:01:18]} 51. Kg2 {[%clk 0:00:11]}  Nf4+ {[%clk 0:01:12]} 52. Kh2 {[%clk 0:00:11]}  Kf5 {[%clk 0:01:09]} 53. Ne3+ {[%clk 0:00:12]}  Kg6 {[%clk 0:01:09]} 54. Ng2 {[%clk 0:00:12]}  Nxg2 {[%clk 0:01:07]} 55. Kxg2 {[%clk 0:00:13]}  Kg5 {[%clk 0:01:06]} 56. Kh3 {[%clk 0:00:13]}  Kf4 {[%clk 0:01:06]} 57. Kxh4 {[%clk 0:00:13]}  Kxf3 {[%clk 0:01:07]} 1/2-1/2


[Site "https://www.chess.com"]

[Event "Titled Tuesday Blitz December 20 Early 2022"]
[White "BENO_CHESS"]
[Black "GiorgianBarbosa"]
[WhiteElo "2706"]
[BlackElo "2484"]
[Result "1/2-1/2"]
[Round "07"]
[TimeControl "180+2"]
[Date "2022.12.20"]
[WhiteClock "0:00:10"]
[BlackClock "0:00:05"]

1. e4 {[%clk 0:03:00]}  c5 {[%clk 0:02:58]} 2. Nc3 {[%clk 0:03:01]}  g6 {[%clk 0:02:57]} 3. d4 {[%clk 0:02:54]}  cxd4 {[%clk 0:02:57]} 4. Qxd4 {[%clk 0:02:55]}  Nf6 {[%clk 0:02:57]} 5. Nf3 {[%clk 0:02:56]}  Nc6 {[%clk 0:02:57]} 6. Qa4 {[%clk 0:02:56]}  d6 {[%clk 0:02:57]} 7. e5 {[%clk 0:02:55]}  dxe5 {[%clk 0:02:58]} 8. Nxe5 {[%clk 0:02:56]}  Bd7 {[%clk 0:02:59]} 9. Nxd7 {[%clk 0:02:55]}  Nxd7 {[%clk 0:03:00]} 10. Be3 {[%clk 0:02:54]}  Bg7 {[%clk 0:03:00]} 11. Rd1 {[%clk 0:02:49]}  O-O {[%clk 0:02:59]} 12. h4 {[%clk 0:02:48]}  Qc8 {[%clk 0:02:51]} 13. h5 {[%clk 0:02:45]}  Rd8 {[%clk 0:01:46]} 14. hxg6 {[%clk 0:02:40]}  hxg6 {[%clk 0:01:47]} 15. Qh4 {[%clk 0:02:36]}  Nf6 {[%clk 0:01:46]} 16. Rxd8+ {[%clk 0:02:33]}  Qxd8 {[%clk 0:01:44]} 17. Bc4 {[%clk 0:02:33]}  Ne5 {[%clk 0:01:40]} 18. Bb3 {[%clk 0:02:29]}  Neg4 {[%clk 0:01:28]} 19. Bg5 {[%clk 0:01:31]}  Qd4 {[%clk 0:01:25]} 20. Bxf6 {[%clk 0:01:29]}  exf6 {[%clk 0:01:09]} 21. O-O {[%clk 0:01:29]}  f5 {[%clk 0:01:00]} 22. Qe7 {[%clk 0:01:25]}  Qe5 {[%clk 0:00:50]} 23. Bxf7+ {[%clk 0:01:18]}  Kh7 {[%clk 0:00:48]} 24. Qh4+ {[%clk 0:01:02]}  Bh6 {[%clk 0:00:42]} 25. Rd1 {[%clk 0:01:01]}  Qf6 {[%clk 0:00:23]} 26. Qxf6 {[%clk 0:00:49]}  Nxf6 {[%clk 0:00:23]} 27. Bc4 {[%clk 0:00:44]}  Re8 {[%clk 0:00:21]} 28. Nb5 {[%clk 0:00:40]}  a6 {[%clk 0:00:20]} 29. Nd6 {[%clk 0:00:39]}  Re7 {[%clk 0:00:21]} 30. Nf7 {[%clk 0:00:36]}  Ne4 {[%clk 0:00:17]} 31. Nxh6 {[%clk 0:00:33]}  Kxh6 {[%clk 0:00:18]} 32. Re1 {[%clk 0:00:31]}  Rc7 {[%clk 0:00:17]} 33. Bd3 {[%clk 0:00:27]}  Nf6 {[%clk 0:00:18]} 34. c3 {[%clk 0:00:24]}  Ng4 {[%clk 0:00:17]} 35. f3 {[%clk 0:00:24]}  Nf6 {[%clk 0:00:18]} 36. Kf2 {[%clk 0:00:25]}  Nd5 {[%clk 0:00:14]} 37. Re8 {[%clk 0:00:21]}  Kg7 {[%clk 0:00:14]} 38. g3 {[%clk 0:00:20]}  f4 {[%clk 0:00:13]} 39. g4 {[%clk 0:00:19]}  Kf6 {[%clk 0:00:11]} 40. Rd8 {[%clk 0:00:19]}  Ne3 {[%clk 0:00:11]} 41. Rd6+ {[%clk 0:00:19]}  Ke7 {[%clk 0:00:10]} 42. Rxg6 {[%clk 0:00:19]}  Nd1+ {[%clk 0:00:11]} 43. Ke2 {[%clk 0:00:17]}  Nxb2 {[%clk 0:00:11]} 44. Rg7+ {[%clk 0:00:17]}  Kd6 {[%clk 0:00:11]} 45. Rxc7 {[%clk 0:00:18]}  Kxc7 {[%clk 0:00:12]} 46. Be4 {[%clk 0:00:19]}  b5 {[%clk 0:00:11]} 47. g5 {[%clk 0:00:19]}  Kd6 {[%clk 0:00:11]} 48. Kf2 {[%clk 0:00:14]}  Ke6 {[%clk 0:00:11]} 49. Kg2 {[%clk 0:00:14]}  Nd1 {[%clk 0:00:10]} 50. Kh3 {[%clk 0:00:05]}  Nxc3 {[%clk 0:00:10]} 51. Bc2 {[%clk 0:00:05]}  Nxa2 {[%clk 0:00:08]} 52. Bb3+ {[%clk 0:00:05]}  Kf5 {[%clk 0:00:08]} 53. Bxa2 {[%clk 0:00:06]}  Kxg5 {[%clk 0:00:09]} 54. Kg2 {[%clk 0:00:06]}  Kf5 {[%clk 0:00:09]} 55. Kf2 {[%clk 0:00:07]}  a5 {[%clk 0:00:09]} 56. Ke2 {[%clk 0:00:08]}  a4 {[%clk 0:00:09]} 57. Kd3 {[%clk 0:00:09]}  b4 {[%clk 0:00:09]} 58. Kc4 {[%clk 0:00:09]}  b3 {[%clk 0:00:10]} 59. Bb1+ {[%clk 0:00:09]}  Ke5 {[%clk 0:00:10]} 60. Kb4 {[%clk 0:00:10]}  Kd4 {[%clk 0:00:08]} 61. Kxa4 {[%clk 0:00:11]}  Ke3 {[%clk 0:00:08]} 62. Be4 {[%clk 0:00:08]}  b2 {[%clk 0:00:08]} 63. Kb3 {[%clk 0:00:08]}  b1=Q+ {[%clk 0:00:08]} 64. Bxb1 {[%clk 0:00:09]}  Kxf3 {[%clk 0:00:09]} 65. Kc3 {[%clk 0:00:10]}  Ke3 {[%clk 0:00:10]} 66. Bd3 {[%clk 0:00:10]}  f3 {[%clk 0:00:10]} 67. Bc4 {[%clk 0:00:09]}  f2 {[%clk 0:00:09]} 68. Bf1 {[%clk 0:00:10]}  Kf3 {[%clk 0:00:09]} 69. Kd3 {[%clk 0:00:11]}  Kg3 {[%clk 0:00:09]} 70. Ke3 {[%clk 0:00:11]}  Kh2 {[%clk 0:00:10]} 71. Kf3 {[%clk 0:00:11]}  Kg1 {[%clk 0:00:10]} 72. Ke2 {[%clk 0:00:12]}  Kh2 {[%clk 0:00:10]} 73. Ke3 {[%clk 0:00:10]}  Kg1 {[%clk 0:00:10]} 74. Bd3 {[%clk 0:00:10]}  f1=R {[%clk 0:00:05]} 75. Bxf1 {[%clk 0:00:10]} 1/2-1/2


[Site "https://www.chess.com"]

[Event "Titled Tuesday Blitz December 20 Early 2022"]
[White "BahadirOzen"]
[Black "Garma, Chito"]
[BlackFideId "5200342"]
[WhiteElo "2853"]
[BlackElo "2345"]
[Result "0-1"]
[Round "07"]
[TimeControl "180+2"]
[Date "2022.12.20"]
[WhiteClock "0:00:07"]
[BlackClock "0:00:08"]

1. g3 {[%clk 0:03:00]}  d5 {[%clk 0:02:57]} 2. Nf3 {[%clk 0:03:01]}  c6 {[%clk 0:02:58]} 3. Bg2 {[%clk 0:03:01]}  Nf6 {[%clk 0:02:58]} 4. O-O {[%clk 0:03:01]}  Bg4 {[%clk 0:02:59]} 5. h3 {[%clk 0:03:02]}  Bxf3 {[%clk 0:02:58]} 6. Bxf3 {[%clk 0:03:02]}  e6 {[%clk 0:02:57]} 7. d3 {[%clk 0:03:02]}  Nbd7 {[%clk 0:02:55]} 8. Nd2 {[%clk 0:03:01]}  Be7 {[%clk 0:02:54]} 9. e4 {[%clk 0:02:59]}  O-O {[%clk 0:02:54]} 10. Bg2 {[%clk 0:03:00]}  a5 {[%clk 0:02:51]} 11. a4 {[%clk 0:03:00]}  Qb6 {[%clk 0:02:48]} 12. Qe2 {[%clk 0:02:53]}  Rfd8 {[%clk 0:02:35]} 13. Kh2 {[%clk 0:02:48]}  dxe4 {[%clk 0:02:33]} 14. dxe4 {[%clk 0:02:48]}  e5 {[%clk 0:02:34]} 15. Nb3 {[%clk 0:02:40]}  Nc5 {[%clk 0:02:19]} 16. Be3 {[%clk 0:02:39]}  Qb4 {[%clk 0:02:20]} 17. Nxc5 {[%clk 0:02:09]}  Bxc5 {[%clk 0:02:20]} 18. c3 {[%clk 0:02:10]}  Qb6 {[%clk 0:02:19]} 19. Bg5 {[%clk 0:02:10]}  Rd6 {[%clk 0:02:06]} 20. Rad1 {[%clk 0:02:04]}  Rad8 {[%clk 0:02:03]} 21. Rxd6 {[%clk 0:01:36]}  Rxd6 {[%clk 0:02:04]} 22. f4 {[%clk 0:01:36]}  Nd7 {[%clk 0:02:01]} 23. fxe5 {[%clk 0:01:32]}  Nxe5 {[%clk 0:02:02]} 24. Bf4 {[%clk 0:01:33]}  Re6 {[%clk 0:01:58]} 25. Rd1 {[%clk 0:01:25]}  Be7 {[%clk 0:01:27]} 26. h4 {[%clk 0:01:22]}  Qb3 {[%clk 0:00:59]} 27. Bh3 {[%clk 0:01:15]}  Rd6 {[%clk 0:01:00]} 28. Rxd6 {[%clk 0:00:58]}  Bxd6 {[%clk 0:01:00]} 29. Bc8 {[%clk 0:00:46]}  h6 {[%clk 0:00:55]} 30. Kh3 {[%clk 0:00:45]}  c5 {[%clk 0:00:51]} 31. Qh5 {[%clk 0:00:40]}  g6 {[%clk 0:00:25]} 32. Qe2 {[%clk 0:00:39]}  Qxa4 {[%clk 0:00:25]} 33. Bxh6 {[%clk 0:00:24]}  Qc6 {[%clk 0:00:17]} 34. Bg4 {[%clk 0:00:24]}  c4 {[%clk 0:00:17]} 35. Bf4 {[%clk 0:00:21]}  Nd3 {[%clk 0:00:18]} 36. Qe3 {[%clk 0:00:15]}  Bxf4 {[%clk 0:00:16]} 37. gxf4 {[%clk 0:00:15]}  Nxb2 {[%clk 0:00:12]} 38. Qd4 {[%clk 0:00:15]}  Nd3 {[%clk 0:00:11]} 39. Kg3 {[%clk 0:00:13]}  Qc5 {[%clk 0:00:08]} 40. Qd8+ {[%clk 0:00:10]}  Kg7 {[%clk 0:00:08]} 41. Bf3 {[%clk 0:00:07]}  Qf2+ {[%clk 0:00:08]} 42. Kg4 {[%clk 0:00:07]}  Qg1+ {[%clk 0:00:08]} 0-1


[Site "https://www.chess.com"]

[Event "Titled Tuesday Blitz December 20 Early 2022"]
[White "Baki, Peter"]
[Black "Arig, Busra"]
[WhiteFideId "718459"]
[BlackFideId "6309356"]
[WhiteElo "2100"]
[BlackElo "1850"]
[Result "1-0"]
[Round "07"]
[TimeControl "180+2"]
[Date "2022.12.20"]
[WhiteClock "0:00:11"]
[BlackClock "0:00:13"]

1. e4 {[%clk 0:02:58]}  Nf6 {[%clk 0:02:58]} 2. e5 {[%clk 0:02:57]}  Nd5 {[%clk 0:02:58]} 3. Nc3 {[%clk 0:02:57]}  Nxc3 {[%clk 0:02:55]} 4. dxc3 {[%clk 0:02:57]}  d5 {[%clk 0:02:55]} 5. h4 {[%clk 0:02:52]}  c5 {[%clk 0:02:49]} 6. Bf4 {[%clk 0:02:46]}  Nc6 {[%clk 0:02:45]} 7. Qd2 {[%clk 0:02:42]}  Be6 {[%clk 0:02:27]} 8. h5 {[%clk 0:02:38]}  h6 {[%clk 0:02:22]} 9. Nf3 {[%clk 0:02:29]}  Qb6 {[%clk 0:02:22]} 10. b3 {[%clk 0:02:29]}  O-O-O {[%clk 0:02:20]} 11. Be2 {[%clk 0:02:28]}  d4 {[%clk 0:02:10]} 12. c4 {[%clk 0:02:26]}  Bg4 {[%clk 0:02:01]} 13. Rh4 {[%clk 0:02:07]}  Bf5 {[%clk 0:01:36]} 14. Bd3 {[%clk 0:01:48]}  Bxd3 {[%clk 0:01:32]} 15. cxd3 {[%clk 0:01:49]}  Rd7 {[%clk 0:01:07]} 16. e6 {[%clk 0:01:41]}  fxe6 {[%clk 0:01:04]} 17. Ne5 {[%clk 0:01:32]}  Nxe5 {[%clk 0:00:53]} 18. Bxe5 {[%clk 0:01:32]}  Rg8 {[%clk 0:00:53]} 19. Rg4 {[%clk 0:01:22]}  Rd8 {[%clk 0:00:45]} 20. Rg6 {[%clk 0:01:21]}  Qc6 {[%clk 0:00:40]} 21. f4 {[%clk 0:01:20]}  Qe8 {[%clk 0:00:39]} 22. Qe2 {[%clk 0:01:18]}  Qf7 {[%clk 0:00:39]} 23. O-O-O {[%clk 0:01:09]}  Rd6 {[%clk 0:00:39]} 24. Rf1 {[%clk 0:01:07]}  Ra6 {[%clk 0:00:38]} 25. Kb2 {[%clk 0:01:07]}  Qe8 {[%clk 0:00:37]} 26. Qe4 {[%clk 0:01:06]}  Qd8 {[%clk 0:00:36]} 27. Qe1 {[%clk 0:01:05]}  Kd7 {[%clk 0:00:33]} 28. Qd2 {[%clk 0:01:04]}  Qe8 {[%clk 0:00:25]} 29. g3 {[%clk 0:01:03]}  Kc8 {[%clk 0:00:24]} 30. Re1 {[%clk 0:01:03]}  Qf7 {[%clk 0:00:24]} 31. Re4 {[%clk 0:01:03]}  Qf5 {[%clk 0:00:24]} 32. g4 {[%clk 0:01:00]}  Qf7 {[%clk 0:00:23]} 33. Re1 {[%clk 0:00:57]}  Qe8 {[%clk 0:00:23]} 34. Qg2 {[%clk 0:00:56]}  Qd7 {[%clk 0:00:22]} 35. g5 {[%clk 0:00:51]}  hxg5 {[%clk 0:00:21]} 36. fxg5 {[%clk 0:00:49]}  Qd8 {[%clk 0:00:21]} 37. Qd2 {[%clk 0:00:38]}  Qe8 {[%clk 0:00:20]} 38. Kb1 {[%clk 0:00:25]}  Rh8 {[%clk 0:00:20]} 39. Qe2 {[%clk 0:00:23]}  Rh7 {[%clk 0:00:17]} 40. Rf1 {[%clk 0:00:23]}  Qd8 {[%clk 0:00:17]} 41. Rf7 {[%clk 0:00:23]}  Kd7 {[%clk 0:00:14]} 42. h6 {[%clk 0:00:22]}  Qe8 {[%clk 0:00:12]} 43. Qf3 {[%clk 0:00:11]}  gxh6 {[%clk 0:00:13]} 44. Qxb7+ {[%clk 0:00:11]} 1-0


[Site "https://www.chess.com"]

[Event "Titled Tuesday Blitz December 20 Early 2022"]
[White "Bilandani, Vansh"]
[Black "Aradhya, Garg"]
[WhiteFideId "8511292"]
[BlackFideId "25006746"]
[WhiteElo "2488"]
[BlackElo "2284"]
[Result "1/2-1/2"]
[Round "07"]
[TimeControl "180+2"]
[Date "2022.12.20"]
[WhiteClock "0:00:12"]
[BlackClock "0:00:11"]

1. d4 {[%clk 0:02:59]}  d5 {[%clk 0:02:59]} 2. Nf3 {[%clk 0:02:59]}  Nf6 {[%clk 0:02:59]} 3. c4 {[%clk 0:02:57]}  c6 {[%clk 0:02:59]} 4. Nc3 {[%clk 0:02:57]}  dxc4 {[%clk 0:02:59]} 5. a4 {[%clk 0:02:57]}  Bf5 {[%clk 0:02:58]} 6. e3 {[%clk 0:02:57]}  e6 {[%clk 0:02:58]} 7. Bxc4 {[%clk 0:02:58]}  Bb4 {[%clk 0:02:58]} 8. O-O {[%clk 0:02:58]}  O-O {[%clk 0:02:58]} 9. Qe2 {[%clk 0:02:59]}  Nbd7 {[%clk 0:02:57]} 10. e4 {[%clk 0:02:54]}  Bg4 {[%clk 0:02:57]} 11. e5 {[%clk 0:02:50]}  Nd5 {[%clk 0:02:56]} 12. Ne4 {[%clk 0:02:37]}  f6 {[%clk 0:02:56]} 13. exf6 {[%clk 0:02:20]}  N7xf6 {[%clk 0:02:55]} 14. h3 {[%clk 0:02:09]}  Bf5 {[%clk 0:02:36]} 15. Ng3 {[%clk 0:01:48]}  Qd6 {[%clk 0:02:33]} 16. Nxf5 {[%clk 0:01:36]}  exf5 {[%clk 0:02:33]} 17. Bd2 {[%clk 0:01:18]}  Rfe8 {[%clk 0:02:11]} 18. Ne5 {[%clk 0:01:14]}  Bxd2 {[%clk 0:01:56]} 19. Qxd2 {[%clk 0:01:14]}  Nd7 {[%clk 0:01:50]} 20. Nxd7 {[%clk 0:01:07]}  Qxd7 {[%clk 0:01:51]} 21. Rfe1 {[%clk 0:01:06]}  g6 {[%clk 0:01:38]} 22. Re5 {[%clk 0:01:01]}  Kg7 {[%clk 0:01:38]} 23. Rae1 {[%clk 0:01:00]}  Nb6 {[%clk 0:01:27]} 24. Qg5 {[%clk 0:00:49]}  Rxe5 {[%clk 0:01:22]} 25. Rxe5 {[%clk 0:00:45]}  Re8 {[%clk 0:01:21]} 26. Bb3 {[%clk 0:00:30]}  Nd5 {[%clk 0:00:42]} 27. Bxd5 {[%clk 0:00:29]}  cxd5 {[%clk 0:00:42]} 28. a5 {[%clk 0:00:29]}  b6 {[%clk 0:00:41]} 29. axb6 {[%clk 0:00:27]}  axb6 {[%clk 0:00:41]} 30. Qe3 {[%clk 0:00:27]}  Kf7 {[%clk 0:00:40]} 31. Qh6 {[%clk 0:00:24]}  Kf6 {[%clk 0:00:35]} 32. Qh4+ {[%clk 0:00:19]}  Kg7 {[%clk 0:00:35]} 33. Qf4 {[%clk 0:00:19]}  Re6 {[%clk 0:00:31]} 34. Qe3 {[%clk 0:00:18]}  Kf6 {[%clk 0:00:31]} 35. f4 {[%clk 0:00:17]}  Qc6 {[%clk 0:00:29]} 36. Kh2 {[%clk 0:00:16]}  h6 {[%clk 0:00:28]} 37. b3 {[%clk 0:00:16]}  g5 {[%clk 0:00:28]} 38. fxg5+ {[%clk 0:00:16]}  hxg5 {[%clk 0:00:29]} 39. h4 {[%clk 0:00:15]}  Rxe5 {[%clk 0:00:21]} 40. dxe5+ {[%clk 0:00:11]}  Ke6 {[%clk 0:00:19]} 41. hxg5 {[%clk 0:00:11]}  Qe8 {[%clk 0:00:18]} 42. Qxb6+ {[%clk 0:00:11]}  Kf7 {[%clk 0:00:18]} 43. Qf6+ {[%clk 0:00:11]}  Kg8 {[%clk 0:00:18]} 44. g6 {[%clk 0:00:11]}  d4 {[%clk 0:00:15]} 45. Qxf5 {[%clk 0:00:09]}  d3 {[%clk 0:00:14]} 46. Qxd3 {[%clk 0:00:09]}  Qxe5+ {[%clk 0:00:14]} 47. Qg3 {[%clk 0:00:10]}  Qh5+ {[%clk 0:00:13]} 48. Kg1 {[%clk 0:00:11]}  Qd1+ {[%clk 0:00:13]} 49. Kh2 {[%clk 0:00:10]}  Qh5+ {[%clk 0:00:13]} 50. Qh3 {[%clk 0:00:11]}  Qe5+ {[%clk 0:00:13]} 51. g3 {[%clk 0:00:08]}  Qe2+ {[%clk 0:00:13]} 52. Qg2 {[%clk 0:00:09]}  Qh5+ {[%clk 0:00:13]} 53. Kg1 {[%clk 0:00:09]}  Qd1+ {[%clk 0:00:13]} 54. Qf1 {[%clk 0:00:10]}  Qd4+ {[%clk 0:00:13]} 55. Qf2 {[%clk 0:00:10]}  Qd1+ {[%clk 0:00:13]} 56. Kg2 {[%clk 0:00:10]}  Qd5+ {[%clk 0:00:13]} 57. Qf3 {[%clk 0:00:10]}  Qd2+ {[%clk 0:00:13]} 58. Kh3 {[%clk 0:00:11]}  Qh6+ {[%clk 0:00:13]} 59. Kg2 {[%clk 0:00:10]}  Qd2+ {[%clk 0:00:13]} 60. Qf2 {[%clk 0:00:11]}  Qd5+ {[%clk 0:00:12]} 61. Kg1 {[%clk 0:00:11]}  Qd1+ {[%clk 0:00:11]} 62. Kg2 {[%clk 0:00:12]}  Qd5+ {[%clk 0:00:11]} 1/2-1/2


[Site "https://www.chess.com"]

[Event "Titled Tuesday Blitz December 20 Early 2022"]
[White "Borges Matos, Juan"]
[Black "cancrushyou"]
[WhiteFideId "3500160"]
[WhiteElo "2409"]
[BlackElo "2530"]
[Result "1/2-1/2"]
[Round "07"]
[TimeControl "180+2"]
[Date "2022.12.20"]
[WhiteClock "0:00:31"]
[BlackClock "0:00:39"]

1. d4 {[%clk 0:03:00]}  Nf6 {[%clk 0:02:59]} 2. c4 {[%clk 0:03:00]}  e6 {[%clk 0:02:58]} 3. g3 {[%clk 0:03:01]}  d5 {[%clk 0:02:58]} 4. Nf3 {[%clk 0:03:00]}  dxc4 {[%clk 0:02:57]} 5. Bg2 {[%clk 0:03:00]}  Nc6 {[%clk 0:02:58]} 6. O-O {[%clk 0:02:56]}  a6 {[%clk 0:02:58]} 7. e3 {[%clk 0:02:54]}  Rb8 {[%clk 0:02:58]} 8. Nfd2 {[%clk 0:02:51]}  e5 {[%clk 0:02:58]} 9. Bxc6+ {[%clk 0:02:46]}  bxc6 {[%clk 0:02:59]} 10. dxe5 {[%clk 0:02:46]}  Ng4 {[%clk 0:02:59]} 11. Nxc4 {[%clk 0:02:45]}  Be6 {[%clk 0:03:00]} 12. Nbd2 {[%clk 0:02:44]}  Bb4 {[%clk 0:02:59]} 13. Qc2 {[%clk 0:02:40]}  h5 {[%clk 0:02:55]} 14. b3 {[%clk 0:02:40]}  h4 {[%clk 0:02:54]} 15. Bb2 {[%clk 0:02:35]}  Nxh2 {[%clk 0:02:32]} 16. Qe4 {[%clk 0:02:06]}  hxg3 {[%clk 0:02:15]} 17. fxg3 {[%clk 0:02:02]}  Nxf1 {[%clk 0:01:57]} 18. Rxf1 {[%clk 0:01:38]}  Bxd2 {[%clk 0:01:51]} 19. Qxc6+ {[%clk 0:01:30]}  Kf8 {[%clk 0:01:50]} 20. Qxe6 {[%clk 0:01:27]}  Qe7 {[%clk 0:01:20]} 21. Qxe7+ {[%clk 0:01:25]}  Kxe7 {[%clk 0:01:20]} 22. Nxd2 {[%clk 0:01:25]}  Ke6 {[%clk 0:01:18]} 23. Nc4 {[%clk 0:01:25]}  Rbd8 {[%clk 0:01:15]} 24. Kg2 {[%clk 0:01:24]}  Rd3 {[%clk 0:01:16]} 25. Rf2 {[%clk 0:01:21]}  Rhd8 {[%clk 0:01:16]} 26. Kf3 {[%clk 0:01:20]}  Rd1 {[%clk 0:01:12]} 27. Ke4 {[%clk 0:01:20]}  Rg1 {[%clk 0:01:11]} 28. Rf3 {[%clk 0:01:11]}  Rdd1 {[%clk 0:01:11]} 29. Bd4 {[%clk 0:01:08]}  Rg2 {[%clk 0:01:09]} 30. a4 {[%clk 0:01:05]}  Rdg1 {[%clk 0:01:05]} 31. Kf4 {[%clk 0:01:00]}  Rb1 {[%clk 0:01:04]} 32. Na5 {[%clk 0:00:59]}  Rc2 {[%clk 0:01:00]} 33. g4 {[%clk 0:00:55]}  c5 {[%clk 0:00:59]} 34. Nc6 {[%clk 0:00:41]}  Kd7 {[%clk 0:01:00]} 35. Nb8+ {[%clk 0:00:37]}  Ke6 {[%clk 0:00:49]} 36. Nc6 {[%clk 0:00:33]}  Kd7 {[%clk 0:00:39]} 37. Nb8+ {[%clk 0:00:32]}  Ke6 {[%clk 0:00:39]} 38. Nc6 {[%clk 0:00:31]} 1/2-1/2


[Site "https://www.chess.com"]

[Event "Titled Tuesday Blitz December 20 Early 2022"]
[White "CaptainCasanova"]
[Black "Alibaev, Akbar"]
[BlackFideId "14200325"]
[WhiteElo "2584"]
[BlackElo "2295"]
[Result "0-1"]
[Round "07"]
[TimeControl "180+2"]
[Date "2022.12.20"]
[WhiteClock "0:00:01"]
[BlackClock "0:00:10"]

1. e4 {[%clk 0:03:00]}  c5 {[%clk 0:02:59]} 2. Nf3 {[%clk 0:03:00]}  d6 {[%clk 0:03:00]} 3. d4 {[%clk 0:03:01]}  cxd4 {[%clk 0:03:00]} 4. Nxd4 {[%clk 0:03:02]}  Nf6 {[%clk 0:03:01]} 5. Nc3 {[%clk 0:03:02]}  a6 {[%clk 0:03:01]} 6. Bc4 {[%clk 0:03:02]}  g6 {[%clk 0:03:00]} 7. Be3 {[%clk 0:02:59]}  Ng4 {[%clk 0:02:57]} 8. Bg5 {[%clk 0:02:55]}  h6 {[%clk 0:02:47]} 9. Bh4 {[%clk 0:02:49]}  Ne5 {[%clk 0:02:40]} 10. Bb3 {[%clk 0:02:47]}  Bg7 {[%clk 0:02:39]} 11. Qd2 {[%clk 0:02:47]}  Nbc6 {[%clk 0:02:38]} 12. Nxc6 {[%clk 0:02:44]}  bxc6 {[%clk 0:02:34]} 13. f4 {[%clk 0:02:42]}  Nd7 {[%clk 0:02:33]} 14. O-O-O {[%clk 0:02:20]}  O-O {[%clk 0:02:24]} 15. g4 {[%clk 0:02:07]}  Nc5 {[%clk 0:02:12]} 16. f5 {[%clk 0:02:07]}  Kh7 {[%clk 0:02:03]} 17. Qe3 {[%clk 0:01:36]}  Nxb3+ {[%clk 0:01:44]} 18. axb3 {[%clk 0:01:35]}  a5 {[%clk 0:01:44]} 19. Na4 {[%clk 0:01:25]}  Rb8 {[%clk 0:01:42]} 20. Bg3 {[%clk 0:01:09]}  Rb4 {[%clk 0:01:32]} 21. Be1 {[%clk 0:01:01]}  c5 {[%clk 0:01:25]} 22. Bxb4 {[%clk 0:00:59]}  axb4 {[%clk 0:01:21]} 23. h4 {[%clk 0:00:44]}  Bd7 {[%clk 0:01:18]} 24. g5 {[%clk 0:00:43]}  c4 {[%clk 0:00:49]} 25. fxg6+ {[%clk 0:00:30]}  fxg6 {[%clk 0:00:48]} 26. h5 {[%clk 0:00:30]}  gxh5 {[%clk 0:00:43]} 27. gxh6 {[%clk 0:00:20]}  Be5 {[%clk 0:00:39]} 28. Kb1 {[%clk 0:00:16]}  cxb3 {[%clk 0:00:33]} 29. cxb3 {[%clk 0:00:15]}  Bg4 {[%clk 0:00:23]} 30. Rdf1 {[%clk 0:00:15]}  Rf6 {[%clk 0:00:20]} 31. Rxf6 {[%clk 0:00:14]}  exf6 {[%clk 0:00:21]} 32. Qa7+ {[%clk 0:00:13]}  Kxh6 {[%clk 0:00:21]} 33. Qf7 {[%clk 0:00:10]}  Qa8 {[%clk 0:00:14]} 34. Re1 {[%clk 0:00:06]}  Qc6 {[%clk 0:00:13]} 35. Ka2 {[%clk 0:00:05]}  Qd7 {[%clk 0:00:13]} 36. Qf8+ {[%clk 0:00:05]}  Qg7 {[%clk 0:00:13]} 37. Qb8 {[%clk 0:00:05]}  d5 {[%clk 0:00:09]} 38. Qxb4 {[%clk 0:00:04]}  d4 {[%clk 0:00:10]} 39. Qd2+ {[%clk 0:00:02]}  Qg5 {[%clk 0:00:10]} 40. Qd3 {[%clk 0:00:01]}  h4 {[%clk 0:00:10]} 0-1


[Site "https://www.chess.com"]